Cogmind - Beta 16 @@@ ROGUE MODE // 2026.01.01 @ 13:43:11 Player: jam Result: Destroyed by Y-45 Defender with Beam Rifle Performance ------------- Evolutions (2) 1000 Regions Visited (3) 600 Robots Destroyed (21) 105 Value Destroyed (732) 732 Prototype IDs (0) 0 Alien Tech Used (0) 0 Bonus (0) 0 TOTAL SCORE: 2437 Bonus ------- None Cogmind --------- Core Integrity 0/550 Matter 141/400 Energy 347/450 System Corruption 2% Temperature Warm (186) Movement Core (200) Ox3 Location -8/Materials Parts ------- > --- POWER (2) -------- Ion Engine > --- PROPULSION (3) --- (None) > --- UTILITY (3) ------ Large Battery Medium Matter Pod Improved Targeting Computer > --- WEAPON (3) ------- (None) > --- INVENTORY (5) ---- (None) Peak State ------------ > --- POWER ------------ Ion Engine Subdweller Power Source > --- PROPULSION ------- Aluminum Leg > --- UTILITY ---------- Advanced Weight Redist. System Subdweller Optics Makeshift Light Armor Plating > --- WEAPON ----------- Light Assault Rifle Barrage Gun Battle Cannon > --- INVENTORY -------- Subdweller Power Source Subdweller Power Source Small Storage Unit Large Battery Medium Matter Pod [Rating: 19] Favorites ----------- Power Subdweller Power Source Engine Subdweller Power Source Propulsion Aluminum Leg Treads Light Treads Leg Aluminum Leg Wheel Subdweller Monowheel Utility Small Storage Unit Device Improved Terrain Scanner Storage Small Storage Unit Processor Improved Targeting Computer Protection Makeshift Light Armor Plating Weapon Light Assault Rifle Energy Gun Pulse Rifle Ballistic Gun Light Assault Rifle Ballistic Cannon Battle Cannon Build | -11 -10 -10 -8 ------- Run | Yrd Mat Sub Mat Slots Evolved 4 | . . . 4 Power 1 | . . . 1 Propulsion 1 | . . . 1 Utility 1 | . . . 1 Weapon 1 | . . . 1 Parts Attached 34 | 7 3 11 13 Power 8 | 1 1 3 3 Engine 8 | 1 1 3 3 Core . | . . . . Reactor . | . . . . Propulsion 6 | 2 . 3 1 Treads 3 | 2 . . 1 Leg 2 | . . 2 . Wheel 1 | . . 1 . Hover . | . . . . Flight . | . . . . Utility 12 | 2 2 2 6 Device 3 | 1 . . 2 Storage 4 | 1 1 . 2 Processor 1 | . . . 1 Hackware . | . . . . Protection 4 | . 1 2 1 Artifact . | . . . . Weapon 8 | 2 . 3 3 Energy Gun 2 | . . . 2 Energy Cannon . | . . . . Ballistic Gun 5 | 2 . 2 1 Ballistic Cannon 1 | . . 1 . Launcher . | . . . . Special Weapon . | . . . . Impact Weapon . | . . . . Slashing Weapon . | . . . . Piercing Weapon . | . . . . Special Melee Weapon . | . . . . Unidentified Prototypes . | . . . . Parts Lost 23 | . 1 5 17 Power 6 | . 1 . 5 Propulsion 5 | . . 3 2 Utility 5 | . . 1 4 Weapon 7 | . . 1 6 Highest Loss Streak 10 | . 1 5 10 To Critical Strikes . | . . . . Average Backups 5 | 1 3 6 3 Power 1 | . . 2 1 Propulsion . | . . . . Utility 2 | . 2 3 1 Weapon . | . . . . Tool/Special . | . . . . Unused Backups 1 | . 1 . . Power . | . . . . Propulsion . | . . . . Utility 1 | . 1 . . Weapon . | . . . . Tool/Special . | . . . . Average Slot Usage (%) 93 | . 99 97 63 Engine 14 | . 14 14 14 Treads 6 | . 28 2 1 Leg 9 | . . 12 5 Wheel 7 | . . 10 . Device 2 | . 7 . 6 Storage 13 | . 14 14 8 Protection 11 | . 6 13 6 Ballistic Gun 19 | . 28 18 12 Ballistic Cannon 7 | . . 9 5 Peak Build Rating 19 | 9 9 16 19 Average Rating 11 | 7 8 13 13 On Entrance 7 | . 9 7 14 Avg Prop Armor Cover (%) 8 | . . 8 . Naked Turns 21 | . . . 21 Heaviest Build 28 | 14 14 20 28 Greatest Support 40 | 40 40 40 20 Greatest Overweight (x) 6 | . . 6 6 Average Overweight (x) 1 | . . 1 1 Largest Inventory Capacity 8 | 8 8 8 8 Average Capacity 7 | 7 8 8 7 Most Carried 8 | 5 8 8 6 Average Carried 5 | 1 4 6 3 Final Capacity 8 | 8 8 8 5 Final Carried 7 | 1 6 7 . Class Distribution -------------------- 92% | Mutant 6% | Tank Dominant Class ---------------- Mutant | -10/Materials Mutant | -10/Subcaves Tank | -8/Materials Resources | -11 -10 -10 -8 ----------- Run | Yrd Mat Sub Mat Matter Collected 809 | 258 155 249 147 Remotely . | . . . . Salvage Created 736 | 21 212 112 391 Parts 42 | 4 9 15 14 Haulers Intercepted . | . . . . Recyclers Shooed . | . . . . Parts Field Recycled . | . . . . Retrieved Matter . | . . . . Parts Self-Destructed 15 | . . 15 . Prevented . | . . . . Parts Restored . | . . . . Kills | -11 -10 -10 -8 ------- Run | Yrd Mat Sub Mat Combat Hostiles Destroyed 19 | . 7 4 8 Guns 14 | . 7 2 5 Cannons 5 | . . 2 3 Classes Destroyed 7 | 1 2 1 3 Worker 1 | . . . 1 Tunneler 1 | 1 . . . Swarmer 3 | . 3 . . Grunt 8 | . 4 . 4 Brawler 1 | . . . 1 Sentry 3 | . . . 3 Subdweller 4 | . . 4 . Best Kill Streak 5 | 1 5 2 4 Combat Bots Only 5 | . 5 2 3 Max Kills in Single Turn 2 | 1 2 1 1 Gunslinging 1 | . 1 . . Exploded . | . . . . Melee . | . . . . Uniques/NPCs Destroyed . | . . . . Combat | -11 -10 -10 -8 -------- Run | Yrd Mat Sub Mat Hostile Shots Fired 240 | . 60 23 157 Missed 52 | . 16 5 31 Hits 188 | . 44 18 126 Melee 2 | . . . 2 Projectile 186 | . 44 18 124 AOE 4 | . . 4 . Critical Strikes 6 | . . . 6 Damage Taken 3038 | . 481 583 1974 Core 741 | . 59 126 556 Absorbed by Shields . | . . . . Redirected to Shielding 52 | . 22 30 . Core Remaining (%) 63 | 100 . 26 . Volleys Fired 86 | 4 26 22 34 Largest 3 | 2 2 2 3 Hottest 142 | 40 40 61 142 Shots Fired 188 | 8 52 44 84 Gun 168 | 8 52 39 69 Cannon 20 | . . 5 15 Launcher . | . . . . Special . | . . . . Kinetic 164 | 8 52 44 60 Thermal 24 | . . . 24 Explosive . | . . . . Electromagnetic . | . . . . Robot Hit Streak 20 | 5 11 10 20 Robot Miss Streak 7 | . 7 2 4 Penetration Max . | . . . . Secondary Targets 3 | . 3 . . Max Gunslinging Chain 1 | . 1 . . Shots Hit Robots 115 | 5 33 26 51 Core Hits 45 | 1 14 9 21 Critical Kills . | . . . . Critical Parts Destroyed 1 | . 1 . . Critical Strikes 7 | . 1 3 3 Burn 2 | . . . 2 Destroy 2 | . 1 1 . Blast 3 | . . 2 1 Melee Attacks . | . . . . Impact . | . . . . Slashing . | . . . . Piercing . | . . . . Sneak Attacks . | . . . . Combat Hostiles . | . . . . Follow-up Attacks . | . . . . Damage Inflicted 1612 | 48 370 312 882 Guns 1235 | 48 370 222 595 Cannons 355 | . . 90 265 Explosions . | . . . . Melee . | . . . . Ramming 22 | . . . 22 Kinetic 1301 | 48 370 312 571 Thermal 289 | . . . 289 Explosive . | . . . . Electromagnetic . | . . . . Impact . | . . . . Slashing . | . . . . Piercing . | . . . . Highest Corruption 2 | . 1 1 2 Average Corruption 1 | . 1 1 2 Corruption Purged . | . . . . Corruption Blocked . | . . . . Effects 17 | . 2 13 2 Message Errors 5 | . 1 3 1 Matter Fused 6 | . . 5 1 Heat Flow Errors 1 | . . 1 . Energy Discharges 2 | . . 2 . Data Loss (minor) 2 | . . 2 . Data Loss (major) 1 | . 1 . . Overload Shots . | . . . . Overflow Damage . | . . . . Projectiles . | . . . . Explosions . | . . . . Melee . | . . . . Knockbacks 6 | . . . 6 Impact 1 | . . . 1 Kinetic 4 | . . . 4 Secondary 1 | . . . 1 Self-Inflicted Damage 10 | . . . 10 Shots . | . . . . Rammed 4 | . . . 4 Targets Rammed 4 | . . . 4 Kicked . | . . . . Crushed . | . . . . Highest Temperature 560 | . 21 139 560 Average Temperature 197 | . 10 69 227 Received Heat Transfer 1095 | . 186 . 909 Effects 16 | . . . 16 Shutdowns 3 | . . . 3 Energy Bleed 1 | . . . 1 Interference 4 | . . . 4 Matter Decay 2 | . . . 2 Short Circuit 1 | . . . 1 Damage (major) 5 | . . . 5 Siege Activations . | . . . . Martial Activations . | . . . . Shielding Activations . | . . . . Robots Disrupted . | . . . . Combat Hostiles . | . . . . Robots Corrupted . | . . . . Combat Hostiles . | . . . . Parts Fried . | . . . . Impact Corruptions . | . . . . Robots Melted . | . . . . Combat Hostiles . | . . . . Parts Melted 5 | . . . 5 Heat Transferred 814 | . . . 814 Parts Sabotaged . | . . . . Parts Stolen . | . . . . Parts Stripped . | . . . . Power Chain Reactions . | . . . . Alert | -11 -10 -10 -8 ------- Run | Yrd Mat Sub Mat Maximum Alert Level . | . . . . Low Security (%) 100 | 100 100 . 100 Level 1 . | . . . . Level 2 . | . . . . Level 3 . | . . . . Level 4 . | . . . . Level 5 . | . . . . High Security . | . . . . Max Security . | . . . . Peak Influence 145 | 5 145 . 85 Initial . | . . . . Average 27 | . 44 . 23 Influence Increases 495 | 5 215 . 275 Destroy 0b10 Robot/C 300 | . 140 . 160 Destroy 0b10 Robot/NC 10 | 5 . . 5 Destroy Leader 80 | . 30 . 50 Disable Machine 15 | . . . 15 Lose Combat Pursuer 90 | . 45 . 45 Influence Decreases 483 | 5 215 . 263 Time Decay 313 | 5 205 . 103 Lost Part 170 | . 10 . 160 Squads Dispatched . | . . . . Investigation . | . . . . Extermination . | . . . . Reinforcement . | . . . . Assault . | . . . . Garrison . | . . . . Intercept . | . . . . Searches Triggered . | . . . . Construction Impeded . | . . . . Haulers Reinforced . | . . . . Active Scanning Responses . | . . . . Cargo Convoy Interrupts . | . . . . Stealth | -11 -10 -10 -8 --------- Run | Yrd Mat Sub Mat Distress Signals 1 | . . . 1 Communications Jammed . | . . . . Distress Signals . | . . . . Times Spotted 27 | . 9 4 14 Peak Tracking Total 6 | . 3 2 6 Tactical Retreats 4 | . 2 . 2 Traps | -11 -10 -10 -8 ------- Run | Yrd Mat Sub Mat Traps Triggered 2 | . 1 1 . Indirectly . | . . . . Trap Hack Attempts . | . . . . Triggered . | . . . . Disarmed . | . . . . Reprogrammed . | . . . . Reused . | . . . . Traps Extracted . | . . . . Installed . | . . . . Triggered . | . . . . Machines | -11 -10 -10 -8 ---------- Run | Yrd Mat Sub Mat Machines Disabled 1 | . . . 1 Max in Single Turn 1 | . . . 1 Machines Repaired . | . . . . Machines Dismantled . | . . . . Machines Sabotaged . | . . . . Overloaded Fab Kills . | . . . . Hacking | -11 -10 -10 -8 --------- Run | Yrd Mat Sub Mat Machines Accessed 2 | . 2 . . Terminals 2 | . 2 . . Fabricators . | . . . . Repair Stations . | . . . . Recycling Units . | . . . . Scanalyzers . | . . . . Garrison Access . | . . . . Total Hacks 3 | . 3 . . Successful 1 | . 1 . . Failed 2 | . 2 . . Catastrophic . | . . . . Database Lockouts . | . . . . Manual . | . . . . Terminals 3 | . 3 . . Fabricators . | . . . . Repair Stations . | . . . . Recycling Units . | . . . . Scanalyzers . | . . . . Garrison Access . | . . . . Terminal Hacks 1 | . 1 . . Record 1 | . 1 . . Fabricator Hacks . | . . . . Repair Station Hacks . | . . . . Recycling Unit Hacks . | . . . . Scanalyzer . | . . . . Garrison Access Hacks . | . . . . Unauthorized Hacks . | . . . . Terminals . | . . . . Fabricators . | . . . . Repair Stations . | . . . . Recycling Units . | . . . . Scanalyzers . | . . . . Garrison Access . | . . . . Data Cores Recovered . | . . . . Used . | . . . . Hacking Detections 1 | . 1 . . Full Trace Events . | . . . . Feedback Events . | . . . . Feedback Blocked . | . . . . Robot Schematics Acquired . | . . . . Robots Built . | . . . . Authchips . | . . . . Time . | . . . . Total Robot Build Rating . | . . . . Part Schematics Acquired . | . . . . Parts Built . | . . . . Authchips . | . . . . Time . | . . . . Total Part Build Rating . | . . . . Part Studies Acquired . | . . . . Parts Repaired . | . . . . Time . | . . . . Parts Recycled . | . . . . Recycled Matter . | . . . . Retrieved Matter . | . . . . Retrieved Components . | . . . . Parts Scanalyzed . | . . . . Part Schematics Acquired . | . . . . Parts Damaged . | . . . . Bothacking | -11 -10 -10 -8 ------------ Run | Yrd Mat Sub Mat Used RIF Installer . | . . . . Robots Hacked . | . . . . Non-combat . | . . . . Combat . | . . . . Robot Hacks Applied . | . . . . Relay Couplers Released . | . . . . Fabnet Peak Effective % . | . . . . Robots Rewired . | . . . . Allies Hacked . | . . . . Hacks Repelled . | . . . . Allies | -11 -10 -10 -8 -------- Run | Yrd Mat Sub Mat Total Allies . | . . . . Largest Group . | . . . . Highest-Rated Group . | . . . . Highest-Rated Ally . | . . . . Total Orders . | . . . . Ally Attacks . | . . . . Total Damage . | . . . . Kills . | . . . . Allies Corrupted . | . . . . Allies Melted . | . . . . Intel | -11 -10 -10 -8 ------- Run | Yrd Mat Sub Mat Active Infowar (turns) 739 | 224 287 . 228 Optics 228 | . . . 228 Terrain 511 | 224 287 . . Robot Analysis Total . | . . . . Derelict Logs Recovered . | . . . . Drone Launches . | . . . . Drone Recoveries . | . . . . Exploration | -11 -10 -10 -8 ------------- Run | Yrd Mat Sub Mat Turns Passed 3370 | 280 571 2104 415 Spaces Moved 1741 | 172 303 1114 152 Core 343 | 18 . 256 69 Treads 555 | 154 303 92 6 Legs 245 | . . 168 77 Wheels 598 | . . 598 . Hover . | . . . . Flight . | . . . . Fastest Speed 50 | 50 160 110 50 Average Speed 175 | 148 160 181 188 Slowest Speed 350 | 160 160 350 350 Overloaded Moves . | . . . . Propulsion Burnouts . | . . . . Robots Hopped . | . . . . Potential Cave-ins 3 | . . 3 . Cave-ins Triggered . | . . . . Exploration Rate (%) 22 | 8 34 36 11 Regions Visited 3 Branch Regions 1 Pre-discovered Areas . | . . . . Known Exits Taken . | . . . . Unknown Exits Taken 3 | 1 1 1 . Scrap Searched 2 | . . 2 . Spaces Dug . | . . . . Terrain Destroyed 1 | . . 1 . Melee . | . . . . Projectile 1 | . . 1 . AOE . | . . . . Terrain Rammed . | . . . . Walls Destroyed . | . . . . Machines Disabled . | . . . . Actions | -11 -10 -10 -8 --------- Run | Yrd Mat Sub Mat Total 1911 | 190 345 1159 217 Wait . | . . . . Move 1738 | 171 302 1113 152 Hop . | . . . . Pick Up 35 | 8 9 9 9 Fast Attach . | . . . . Attach 32 | 7 3 6 16 Detach 2 | . 2 . . Swap 6 | . . 5 1 Drop 8 | . 3 4 1 Fire 86 | 4 26 22 34 Melee . | . . . . Ram 4 | . . . 4 Kick . | . . . . Crush . | . . . . Escape Stasis . | . . . . Rewire . | . . . . Trap . | . . . . Miscellaneous . | . . . . Route ------- -11/Scrapyard -10/Materials (discovered 2 exits: [*Min] / [*Sub]) -10/Subcaves -8/Materials (discovered 1 exit: [*Sto]) History --------- Turn | Location | Event 12 | -11/Scrapyard | Discovered new exit (range 16) 281 | -11/Scrapyard | Entered Materials 301 | -10/Materials | Build established: Mutant 452 | -10/Materials | Discovered new exit (range 11) 830 | -10/Materials | Discovered new exit (range 8) 852 | -10/Materials | Entered Subcaves 853 | -10/Subcaves | Approached by a straggling Scientist 882 | -10/Subcaves | Shifting Twisted Machinery released Sub. Laser 1045 | -10/Subcaves | Core integrity fell below 50% 1063 | -10/Subcaves | Lost 5 parts (3n1u1w) 1199 | -10/Subcaves | Shifting Twisted Machinery released Sub. Power Source 1205 | -10/Subcaves | Shifting Twisted Machinery released Mak. Light Armor Plating 1264 | -10/Subcaves | Curiously followed by a Cobbler waking with a query about "LVR3C" 1290 | -10/Subcaves | Discovered new exit (range 15) 2956 | -10/Subcaves | Entered Materials 2956 | -8/Materials | Evolved 4 slots: Power x1, Propulsion x1, Utility x1, Weapon x1 3122 | -8/Materials | Discovered new exit (range 12) 3285 | -8/Materials | Core integrity fell below 50% 3299 | -8/Materials | Lost 10 parts (3p1n3u3w) 3360 | -8/Materials | Core integrity fell below 20% 3371 | -8/Materials | Destroyed by Y-45 Defender with Beam Rifle Last Messages --------------- 03344_ Critical hit (Burn: +37). [Achievement: Well Done] 03345_ Overheating: Matter decay (-43). 03346_ Overheating: Pulse Rifle damaged (-10). 03346_ Overheating: Med. Matter Pod damaged (-11). 03346_ Overheating: Hvy. Assault Rifle damaged (-78). 03346_ Overheating: Beam Rifle damaged (-4). 03348_ Hvy. Assault Rifle broken. 03348_ Overheating: Short circuit. 03353_ Overheating: Matter decay (-27). 03353_ Pulse Rifle destroyed. 03353_ Ion Engine destroyed. 03354_ Overheating: System interference. 03354_ Beam Rifle temporarily disabled. 03355_ Acquired Imp. Targeting Computer. 03357_ Critical hit (Burn: +37). 03359_ Beam Rifle destroyed. 03361_ Broken Hvy. Assault Rifle destroyed. 03362_ Lgt. Treads destroyed. 03363_ Acquired Ion Engine. Map ----- +----------------------------------------------------+ | | | | | | | | | | | | | | | | | | | | | ?????????????????????????????????????????????????? | | ?????????????????????????????????????????????????? | | ?????????????????????????????????????????????????? | | ?????????????????????????????????????????????????? | | ########?????????????????????????????????????????? | | #?????????????????????????????????????????? | | !#?????????????????????????????????????????? | | #??????????????###????????????????????????? | | "" """ #???############ ########?????????????????? | | "" """ ##### # #?????????????????? | | "" """ # # # """ #?????????????????? | | # # """ """ # """ #?????????????????? | | ! # # """ """ # """ #?????????????????? | | ##+##### + """ """ # !! "" #?????????????????? | | # # # ! "" #?????????????????? | | # #! #!! @ #?????????????????? | | # # %g%Y = #?????????????????? | | ######## ###############+#######???????????????? | | ???????# #???????????????? | | ???????# #???????????????? | | ???????# #???????????????? | | ???????# ################### +???????????????? | | ???????# #?????????????????? #???????????????? | | ???????# #??????????????????? #???????????????? | | ???????# #???????????????????? #???????????????? | | ???????# #?????????????????????#???????????????? | | ???????# #?????????????????????????????????????? | | ???????# +?????????????????????????????????????? | | ??????? #?????????????????????????????????????? | | ??????? #?????????????????????????????????????? | | ?????? #?????????????????????????????????????? | | ??????######?????????????????????????????????????? | | ?????????????????????????????????????????????????? | | ?????????????????????????????????????????????????? | | ?????????????????????????????????????????????????? | | ?????????????????????????????????????????????????? | | ?????????????????????????????????????????????????? | | ?????????????????????????????????????????????????? | | ?????????????????????????????????????????????????? | | ?????????????????????????????????????????????????? | +----------------------------------------------------+ Best States ------------- Heat Dissipation 31 Energy Generation 25 Energy Capacity 450 Matter Stores 300 Matter Capacity 400 Sight Range 21 Terrain Scan Range 16 Terrain Scan Density 10 Armor Coverage 150 Weapon Shielding 33 Evasion (%) 50 Targeting Accuracy 6 Recoil Reduction 2 Item Schematics ----------------- None Robot Schematics ------------------ None Fabricated ------------ Nothing Repaired ---------- Nothing Studied --------- None Alien Tech Used ----------------- None Achievements -------------- Bumper Bots DATA ERROR: Steam Global Achievement% For Emergencies Only Organ Harvest Spot Them First There's More Where That Came From Well Done Challenges ------------ None Game ------ Seed SwordChromionCore Manual? 0 Play Time 00:24:55 Cumulative 2.8 hours Start 2026.01.01 @ 13:17:41 End 2026.01.01 @ 13:43:11 Sessions 1 Manual Loads 0 Difficulty Rogue Special Mode None Game No. 6 Rogue 3 Adventurer 3 Explorer 0 Win Type - Total 0 Types 0/0/0/0/0/0/0/0/0/0 Lore% 3 Gallery% 6 Achievement% 6 Wizard Run 0 Options --------- Layout 1 ASCII 0 Keyboard 0 Movement Arrows Keybinds 0 Fullscreen 1 Font 20/SmallcapsGlow Map View 55x45 Zoom Use 0% Tactical HUD 1 Map Filters NONE Filters NONE Steam 1 RUN: 15b092ab-3424-46f0-a334-2621f74bb656